Workbook

Sheet Wybór języka

Sheet PL
A1: P&L (Asseco Poland S.A.) | B1: P&L (Asseco Poland S.A.) | C1: Q2 2019 | D1: Q1 2019 | E1: Q4 2018 | F1: Q3 2018 | G1: Q2 2018 | H1: Q1 2018
C3: mln PLN | D3: mln PLN | E3: mln PLN | F3: mln PLN | G3: mln PLN | H3: mln PLN
A5: Przychody ze sprzedaży | B5: Sales revenues | C5: 210 | D5: 195.1 | E5: 251.5 | F5: 211 | G5: 225.4 | H5: 205.4
A6: Koszt własny sprzedaży | B6: Cost of sales | C6: -146.5 | D6: -137.7 | E6: -170.8 | F6: -133.3 | G6: -147.5 | H6: -137
A7: Odpis (odwrócenie odpisu) z tytułu utraty wartości należności handlowych | B7: Write-off (reversal of write-off) of trade receivables | C7: 0.2 | D7: 2.1 | E7: 0.2 | F7: -1.1 | G7: -2.4 | H7: 6.7
A9: Zysk brutto ze sprzedaży | B9: Gross profit on sales | C9: =SUM(C5:C7) -> 63.7 | D9: 59.5 | E9: 80.9 | F9: 76.6 | G9: 75.5 | H9: 75.1
A11: Koszty sprzedaży | B11: Selling costs | C11: -10.5 | D11: -10.9 | E11: -13.5 | F11: -10.7 | G11: -11.4 | H11: -10.8
A12: Koszty ogólnego zarządu | B12: General administrative expenses | C12: -21.4 | D12: -18.9 | E12: -23.6 | F12: -18.9 | G12: -21 | H12: -18.5
A14: Zysk netto ze sprzedaży | B14: Net profit on sales | C14: =SUM(C9,C11:C12) -> 31.8 | D14: 29.7 | E14: 43.8 | F14: 47 | G14: 43.1 | H14: 45.8
A16: Pozostałe przychody operacyjne | B16: Other operating income | C16: 0.3 | D16: 0.2 | E16: 1 | F16: 0.8 | G16: 0.8 | H16: 0.8
A17: Pozostałe koszty operacyjne | B17: Other operating expenses | C17: -0.2 | D17: -0.8 | E17: -0.2 | F17: -0.2 | G17: -0.8 | H17: -0.2
A18: Odpis (odwrócenie odpisu) z tytułu utraty wartości instrumentów finansowych | B18: Write-off (reversal of write-off) of financial instruments | E18: 0 | F18: 0 | G18: 0 | H18: 0
A20: Zysk z działalności operacyjnej | B20: Operating profit | C20: =SUM(C14,C16:C18) -> 31.9 | D20: 29.1 | E20: 44.6 | F20: 47.6 | G20: 43.1 | H20: 46.4
A22: Działalność finansowa | B22: Financial activity | C22: 21.9 | D22: 80.1 | E22: 6.4 | F22: 3.3 | G22: 7.3 | H22: 12
A24: Zysk brutto | B24: Pre-tax profit | C24: =SUM(C20,C22) -> 53.8 | D24: 109.2 | E24: 51 | F24: 50.9 | G24: 50.4 | H24: 58.4
A26: Podatek dochodowy | B26: Corporate income tax | C26: -4.8 | D26: -5.8 | E26: -10.1 | F26: -10.7 | G26: -10.3 | H26: -13.1
A28: Zysk netto z działalności kontynuawanej za okres sprawozdawczy | B28: Net profit for the reporting period from continued operations | C28: =SUM(C24,C26) -> 49 | D28: 103.4 | E28: 40.9 | F28: 40.2 | G28: 40.1 | H28: 45.3
A30: Zysk netto z działalności zaniechanej za okres sprawozdawczy | B30: Net profit for the reporting period from discontinued operations | C30: 0 | D30: 0 | E30: 0 | F30: 0 | G30: 0 | H30: 0
A32: Zysk netto za okres sprawozdawczy | B32: Net profit for the reporting period | C32: =SUM(C28,C30) -> 49 | D32: 103.4 | E32: 40.9 | F32: =SUM(F28,F30) -> 40.2 | G32: 40.1 | H32: 45.3
A34: Zysk netto przypadający na jedną akcję (w złotych) z działalności kontynuowanej | B34: Earnings per share (in PLN) from continued operations:
A35: EPS | B35: EPS | C35: 0.59 | D35: 1.25 | E35: 0.5 | F35: 0.48 | G35: 0.48 | H35: 0.55
A36: EPS rozwodniony | B36: Diluted EPS | C36: 0.59 | D36: 1.25 | E36: 0.5 | F36: 0.48 | G36: 0.48 | H36: 0.55

Sheet BS
A1: BILANS ASSECO POLAND S.A. | B1: STATEMENT OF FINANCIAL POSITION OF ASSECO POLAND S.A. | C1: Q2 2019 | D1: Q1 2019 | E1: Q4 2018 | F1: Q3 2018 | G1: Q2 2018 | H1: Q1 2018
C3: mln PLN | D3: mln PLN | E3: mln PLN | F3: mln PLN | G3: mln PLN | H3: mln PLN
A7: Aktywa trwałe | B7: Non-current assets
A8: Rzeczowe aktywa trwałe | B8: Property, plant and equipment | C8: 271.2 | D8: 268.1 | E8: 310.2 | F8: 312.2 | G8: 314.9 | H8: 316.7
A9: Wartości niematerialne | B9: Intangible assets | C9: 2215.3 | D9: 2218.2 | E9: 2213.2 | F9: 2208.5 | G9: 2210.5 | H9: 2213.4
A10: w tym wartość firmy z połączenia | B10: of which goodwill from mergers | C10: 1932.5 | D10: 1932.5 | E10: 1932.5 | F10: 1932.5 | G10: 1932.5 | H10: 1932.5
A11: Aktywa z tytułu prawa do użytkowania | B11: Right-to-use assets | C11: 95.7 | D11: 99.9 | E11: 0 | F11: 0 | G11: 0 | H11: 0
A12: Nieruchomości inwestycyjne | B12: Investment property | C12: 0.4 | D12: 0.4 | E12: 0.4 | F12: 0.4 | G12: 0.4 | H12: 0.4
A13: Inw. w jedn. zależnych i stowarzyszonych | B13: Inv. in subsidiaries and associates | C13: 2073.2 | D13: 2069.7 | E13: 2052.1 | F13: 2056.1 | G13: 2055 | H13: 2052.5
A14: Należności długoterminowe | B14: Long-term receivables | C14: 76.9 | D14: 82 | E14: 82.7 | F14: 81.2 | G14: 85.5 | H14: 88.3
A15: Długoterminowe aktywa finansowe | B15: Long-term financial assets | C15: 32 | D15: 31.4 | E15: 46.4 | F15: 14 | G15: 13.5 | H15: 37.1
A16: Długoterm. rozl. międzyokresowe | B16: Long-term prepayments and accr. inc. | C16: 4.9 | D16: 5.6 | E16: 6 | F16: 5.9 | G16: 4.3 | H16: 1
C17: =SUM(C8:C9,C11:C16) -> 4769.6 | D17: =SUM(D8:D9,D11:D16) -> 4775.3 | E17: =SUM(E8:E9,E11:E16) -> 4711 | F17: 4678.3 | G17: 4684.1 | H17: 4709.4
A18: Aktywa obrotowe | B18: Current assets
A19: Zapasy | B19: Inventories | C19: 2.6 | D19: 4.3 | E19: 2.6 | F19: 4.7 | G19: 4.7 | H19: 2.8
A20: Należności z tytułu dostaw i usług | B20: Trade receivables | C20: 203.1 | D20: 138 | E20: 173.7 | F20: 160.4 | G20: 187.3 | H20: 373.6
A21: Aktywa z tytułu umów z klientami | B21: Contract assets | C21: 119.4 | D21: 144.9 | E21: 122.4 | F21: 151.7 | G21: 164.9 | H21: 0
A22: Należności z tyt. podatku dochodowego od osób prawnych | B22: Corporate income tax receivable | C22: 0.9 | D22: 0 | E22: 0 | F22: 0.1 | G22: 0.1 | H22: 28.3
A23: Pozostałe należności | B23: Other receivables | C23: 22.7 | D23: 89.3 | E23: 17.4 | F23: 27.3 | G23: 24.2 | H23: 25.3
A24: Pozostałe aktywa niefinansowe | B24: Other non-financial assets | C24: 0.9 | D24: 1.8 | E24: 1.6 | F24: 3.8 | G24: 1.6 | H24: 1.8
A25: Aktywa finansowe | B25: Financial assets | C25: 1.6 | D25: 1.4 | E25: 1.4 | F25: 23.8 | G25: 23.3 | H25: 5.7
A26: Rozliczenia międzyokresowe | B26: Prepayments and accrued income | C26: 22.1 | D26: 24 | E26: 16.1 | F26: 16 | G26: 13.2 | H26: 14.7
A27: Środki pieniężne i depozyty krótkoterminowe | B27: Cash and short-term deposits | C27: 35.1 | D27: 247.8 | E27: 264.7 | F27: 184.5 | G27: 147.8 | H27: 298.4
A28: Aktywa przeznaczone do sprzedaży | B28: Assets held for sale | C28: 1.9 | D28: 3.5 | E28: 6 | F28: 6 | G28: 3.9 | H28: 3.9
C29: =SUM(C19:C28) -> 410.3 | D29: 655 | E29: 605.9 | F29: 578.3 | G29: 571 | H29: 754.5
A32: SUMA AKTYWÓW | B32: TOTAL ASSETS | C32: =SUM(C17,C29) -> 5179.9 | D32: 5430.3 | E32: =SUM(E17,E29) -> 5316.9 | F32: 5256.6 | G32: 5255.1 | H32: 5463.9
A34: KAPITAŁ WŁASNY OGÓŁEM | B34: TOTAL EQUITY | C34: 4838.5 | D34: 5046 | E34: 4949.8 | F34: 4909 | G34: 4869 | H34: 5078.9
A36: Zobowiązania długoterminowe | B36: Non-current liabilities
A37: Długoterminowe oprocentowane kredyty bankowe, pożyczki, dłużne papiery wartościowe | B37: Long-term interest-bearing bank loans, borrowings and debt securities | C37: 0 | D37: 0 | E37: 38.8 | F37: 42.5 | G37: 46.4 | H37: 59.9
A38: Dł. zob. z tyt. leasingu finansowego | B38: Long-term finance lease liabilities | C38: 67.6 | D38: 76.1 | E38: 21.8 | F38: 27.7 | G38: 34.2 | H38: 38.8
A39: Długoterminowe zobowiązania finansowe | B39: Long-term financial liabilities | C39: 2.8 | D39: 2.7 | E39: 2.2 | F39: 0 | G39: 1.2 | H39: 0
A40: Rezerwa z tytułu odr. podatku doch. | B40: Deferred income tax liabilities | C40: 28.4 | D40: 29.5 | E40: 26.3 | F40: 28.2 | G40: 28 | H40: 25
A41: Długoterminowe zobowiązania z tytułu umów z klientami | B41: Long-term contract liabilities | C41: 8.3 | D41: 8.3 | E41: 8.7 | F41: 6 | G41: 4.8 | H41: 0
A42: Długoterminowe pozostałe zobowiązania | B42: Other long-term liabilities | C42: 0.3 | D42: 0.3 | E42: 0.5 | F42: 0.5 | G42: 0.1 | H42: 0.3
A43: Długoterminowe rezerwy | B43: Long-term provisions | C43: 11.3 | D43: 9 | E43: 9.7 | F43: 12.5 | G43: 14.7 | H43: 17
A44: Długoterminowe rozliczenia międzyokresowe przychodów | B44: Long-term deferred income | C44: 33.1 | D44: 33 | E44: 32.4 | F44: 31.9 | G44: 31.5 | H44: 37.1
C45: =SUM(C37:C44) -> 151.8 | D45: 158.9 | E45: 140.4 | F45: 149.3 | G45: 160.9 | H45: 178.1
A46: Zobowiązania krótkoterminowe | B46: Current liabilities
A47: Oprocentowane kredyty bankowe, pożyczki, dłużne papiery wartościowe | B47: Interest-bearing bank loans, borrowings and debt securities | C47: 1.1 | D47: 25.9 | E47: 15.2 | F47: 15.3 | G47: 15.4 | H47: 25.2
A48: Zob. z tyt. leasingu finansowego | B48: Finance lease liabilities | C48: 31.8 | D48: 31.9 | E48: 23.6 | F48: 23 | G48: 23.1 | H48: 22
A49: Inne zobowiązania finansowe | B49: Other financial liabilities | C49: 2.3 | D49: 2.2 | E49: 1 | F49: 1.1 | G49: 1.8 | H49: 0.1
A50: Zobowiązania z tytułu dostaw i usług | B50: Trade payables | C50: 63.2 | D50: 66.9 | E50: 75.8 | F50: 66 | G50: 85.9 | H50: 70.4
A51: Krótkoterminowe zobowiązania z tytułu umów z klientami | B51: Current contract liabilities | C51: 27.6 | D51: 23.5 | E51: 26.5 | F51: 20 | G51: 24.7 | H51: 0
A52: Zobowiązania budżetowe | B52: Liabilities to the state and local budgets | C52: 20.4 | D52: 12.7 | E52: 15.6 | F52: 13 | G52: 14.6 | H52: 17.5
A53: Zobowiązania z tytułu podatku dochodowego od osób prawych | B53: Corporate income tax payable | C53: 0 | D53: 10.3 | E53: 15.1 | F53: 8.4 | G53: 4.1 | H53: 0
A54: Pozostałe zobowiązania | B54: Other liabilities | C54: 6.4 | D54: 2.9 | E54: 7 | F54: 9.7 | G54: 11.2 | H54: 9.9
A55: Rezerwy | B55: Provisions | C55: 5.8 | D55: 10.3 | E55: 11.8 | F55: 10.4 | G55: 10.5 | H55: 10.7
A56: Rozliczenia międzyokresowe kosztów | B56: Deferred income | C56: 29.8 | D56: 37.6 | E56: 33.8 | F56: 30.1 | G56: 32.5 | H56: 28
A57: Rozliczenia międzyokresowe przychodów | B57: Accruals | C57: 1.2 | D57: 1.2 | E57: 1.3 | F57: 1.3 | G57: 1.4 | H57: 23.1
C58: =SUM(C47:C57) -> 189.6 | D58: 225.4 | E58: 226.7 | F58: =SUM(F47:F57) -> 198.3 | G58: 225.2 | H58: 206.9
A60: SUMA ZOBOWIĄZAŃ | B60: TOTAL LIABILITIES | C60: =SUM(C45,C58) -> 341.4 | D60: 384.3 | E60: =SUM(E45,E58) -> 367.1 | F60: 347.6 | G60: 386.1 | H60: 385
A62: SUMA PASYWÓW | B62: TOTAL EQUITY AND LIABILITIES | C62: =SUM(C34,C60) -> 5179.9 | D62: 5430.3 | E62: 5316.9 | F62: =SUM(F34,F60) -> 5256.6 | G62: 5255.1 | H62: 5463.9
C63: =C62-C32 -> 0 | D63: 0 | E63: 0 | F63: 0 | G63: 0 | H63: 0

Sheet CF
A1: RACHUNEK PRZEPŁYWÓW PIENIĘŻNYCH ASSECO POLAND S.A. | B1: STATEMENT OF CASH FLOWS OF ASSECO POLAND S.A. | C1: HY 2019 | D1: HY 2018
C2: mln PLN | D2: mln PLN
A4: Przepływy środków pieniężnych z działalności operacyjnej | B4: Cash flows – operating activities
A5: Zysk brutto | B5: Pre-tax profit | C5: 163 | D5: 108.8
A6: Korekty o pozycje: | B6: Total adjustments: | C6: =SUM(C7:C16) -> -115.4 | D6: =SUM(D7:D16) -> 6.6
A7: Amortyzacja | B7: Depreciation and amortization | C7: 32.3 | D7: 27
A8: Zmiany stanu kapitału pracującego | B8: Changes in working capital | C8: -46.5 | D8: -2.7
A9: Przychody/koszty z tytułu odsetek | B9: Interest income/expenses | C9: 0 | D9: -0.6
A10: Zyski/straty z tytułu różnic kursowych | B10: Gain / loss on foreign exchange differences | C10: -0.5 | D10: -1.5
A11: Przychody z tytułu dywidend | B11: Dividend income | C11: -100 | D11: -15.6
A12: Przychody ze sprzedaży akcji/udziałów w jednostkach powiązanych | B12: Gain / loss on sales of share in subsidiaries | C12: -0.7 | D12: 0
A13: Pozostałe przychody/koszty finansowe | B13: Other financial (income)/ costs | C13: 0 | D13: 0.6
A14: Odpis aktualizujący wartości niematerialne | B14: Intangible assets impairment | C14: 0 | D14: 0
A15: Zyski/straty z działalności inwestycyjnej | B15: Gain / loss on investing activities | C15: 0 | D15: -0.6
A16: Pozostałe korekty zysku brutto | B16: Other pre-tax profit adjustments
A17: Środki pieniężne netto wygenerowane z dział. operacyjnej | B17: Cash generated from operating activities | C17: =SUM(C5:C6) -> 47.6 | D17: =SUM(D5:D6) -> 115.4
A18: (Zapłacony podatek dochodowy) / Otrzymane zwroty podatku dochodowego | B18: (Corporate income tax paid) / Corporate income tax receipts | C18: -22 | D18: 17.2
A19: Środki pieniężne netto z działalności operacyjnej | B19: Net cash provided by (used in) operating activities | C19: =SUM(C17:C18) -> 25.6 | D19: =SUM(D17:D18) -> 132.6
A21: Przepływy środków pieniężnych z działalności inwestycyjnej | B21: Cash flows – investing activities
A22: Wpływy ze sprzedaży AT i WN [1] | B22: Disposal of tangible FA and IA [1] | C22: 4.1 | D22: 0.7
A23: Nabycie AT i WN [1] | B23: Acquisition of tangible FA and IA [1] | C23: -17.8 | D23: -10.9
A24: Wydatki z tytułu prowadzonych projektów rozwojowych | B24: Expenditures for development projects in progress | C24: -13.5 | D24: -5.2
A25: Wpływy ze sprzedaży/liwidacji inwestycji w jednostkach powiązanych | B25: Disposal of shares in related companies | C25: 4.7 | D25: 8.3
A26: Nabycie akcji/udziałów w jednostkach powiązanych | B26: Acquisition of shares in related companies | C26: -2.9 | D26: -15.6
A27: Nabycie aktywów finansowych | B27: Acquisition of financial assets | C27: 0 | D27: 0
A28: Wpływy ze sprzedaży aktywów finansowych P&L [2] | B28: Disposal of financial assets P&L [2]
A29: Pożyczki spłacone | B29: Loans collected | C29: 0.9 | D29: 9.5
A30: Pożyczki udzielone | B30: Loans granted | C30: -2.6 | D30: -3.7
A31: Otrzymane odsetki | B31: Interest received | C31: 2.7 | D31: 3.1
A32: Dywidendy otrzymane | B32: Dividends received | C32: 93.5 | D32: 10.2
A33: Pozostałe wpływy | B33: Other inflows | C33: 0 | D33: 1.1
A34: Środki pieniężne netto wykorzystane w działalności inwestycyjnej | B34: Net cash provided by (used in) investing activities | C34: =SUM(C22:C33) -> 69.1 | D34: =SUM(D22:D33) -> -2.5
A36: Przepływy środków pieniężnych z działalności finansowej | B36: Cash flows – financing activities
A37: Wypłacona dywidenda | B37: Dividend paid out | C37: -254.8 | D37: -249.8
A38: Wpływy z tytułu zaciągnięcia kredytów | B38: Proceeds from bank loans
A39: Wydatki z tytułu spłaty kredytów | B39: Repayment of bank loans and borrowings | C39: -52.7 | D39: -27
A40: Dotacje otrzymane do zakupu środków trwałych lub/i projektów rozwojowych | B40: Subsidies received | C40: 2.3 | D40: 0
A41: Dotacje zwrócone | B41: Subsidies returned
A42: Spłata zobowiązań z tytułu leasingu finansowego | B42: Finance lease liabilities paid | C42: -16.2 | D42: -10.7
A43: Zapłacone odsetki | B43: Interest paid | C43: -2.9 | D43: -3.1
A44: Środki pieniężne netto z działalności finansowej | B44: Net cash provided by (used in) financing activities | C44: =SUM(C37:C43) -> -324.3 | D44: =SUM(D37:D43) -> -290.6
A45: Zmiana netto stanu środków pieniężnych i ich ekwiwalentów | B45: Net change in cash and cash equivalents | C45: =C19+C34+C44 -> -229.6 | D45: =D19+D34+D44 -> -160.5
A46: Różnice kursowe netto | B46: Net foreign exchange differences | C46: 0 | D46: 0.3
A47: Środki pieniężne i ich ekwiwalenty na dzień 1 stycznia | B47: Cash and cash equivalents at 1 January | C47: 264.7 | D47: 308
A48: Środki pieniężne i ich ekwiwalenty na dzień 31 marca | B48: Cash and cash equivalents at 31 March | C48: =SUM(C45:C47) -> 35.1 | D48: =SUM(D45:D47) -> 147.8
C49: =C47+C46+C45-C48 -> 0 | D49: =D47+D46+D45-D48 -> 0
A51: Objaśnienia: | B51: Legend:
A52: [1] AT i WN - aktywów trwałych i wartości niematerialnych | B52: [1] FA and IA - fixed assets and intangible assets
A53: [2] Wpływy / wydatki ze sprzedaży aktywów finansowych wycenianych do wartości godziwej przez rachunek zysków i strat | B53: [2] Disposal / Purchase of financial assets carried at fair value through profit or loss
